Workbook

Sheet Cover
G5: Basic Simulations in Excel
F13: Hubbard Decision Research
F14: 2S410 Canterbury Ct
F15: Glen Ellyn, IL 60137
F16: www.hubbardresearch.com

Sheet Deterministic Cash Flow
A1: Deterministic Cash Flow Example
B3: Input Variables | D3: Point Est.
B4: Percent reduction in labor cost | D4: 0.03
B5: Current total labor cost | D5: 75000000
B6: Initial development costs (2020) | D6: 5000000
B7: Cost of money | D7: 0.065
B9: Cash Flow
C10: 2020 | D10: 2021 | E10: 2022 | F10: 2023 | G10: 2024
B11: Total costs | C11: =D6 -> 5000000
B12: Total benefits | D12: =$D5*$D4 -> 2250000 | E12: =$D5*$D4 -> 2250000 | F12: =$D5*$D4 -> 2250000 | G12: =$D5*$D4 -> 2250000
B13: Net benefit | C13: =C12-C11 -> -5000000 | D13: =D12-D11 -> 2250000 | E13: =E12-E11 -> 2250000 | F13: =F12-F11 -> 2250000 | G13: =G12-G11 -> 2250000
B15: Results
B16: Net Present Value | C16: =NPV(D7, C13:G13) -> 2542766.999

Sheet Workspace
I2: Skills checklist
J4: Principles
J5: Deterministic cash flow & NPV
J6: Analytic solutions
J7: RAND() function
J8: HDR PRNG
J9: Uniform distribution
J10: Three-variable model
J11: Excel's What-If Data Tables
J12: COUNTIF() and AVERAGE() functions
J13: Dynamic histograms
J14: Triangular and binary distributions
J15: Build a model from scratch
J16: Optional material

Sheet HDR PRNG
A1: Hubbard Decision Research PRNG
A2: Trial ID | B2: 7 | H2: Formula Text | I2: rand = ((mod((mod(mod(999999999999989,mod(trialID*2499997+varID*1800451,7450589)*4658+7450581)*383,99991)*7440893+mod(mod(999999999999989,mod(trialID*2246527+varID*2399993,7450987)*7580+7560584)*17669,7440893))*1343,4294967296))+0.5)/2^32
B4: Variable ID | C4: HDR PRNG
B5: 1000 | C5: =((MOD((MOD(MOD(999999999999989,MOD($B$2*2499997+B5*1800451,7450589)*4658+7450581)*383,99991)*7440893+MOD(MOD(999999999999989,MOD($B$2*2246527+B5*2399993,7450987)*7580+7560584)*17669,7440893))*1343,4294967296))+0.5)/2^32 -> 0.9346124042 | D5: ← Copy this cell to use the PRNG in your exercises
B7: Dimension | C7: 1st Term | D7: 2nd Term | E7: Description
B8: Trial | C8: 2499997 | D8: 2246527 | E8: This represents a unique identifier for a given scenario in a simulation. This 8 decimal digit identifier allows for up to 100 million unique trials for each variable in a model.
B9: Variable | C9: 1800451 | D9: 2399993 | E9: This is a unique identifier for a variable. It would be an 8-digit variable ID allowing for up to 100 million unique variables. For example, if “Monthly Demand for Product X” and “average time spent in activity Y” were variables in a model, they would each be given unique variable IDs. Organizations may structure their Variables IDs so that related variables are in groups. For example, perhaps all marketing and sales related variables have “11” for the first two digits and all cybersecurity related variables have “73” for the first two digits, and so on. Variable IDs could be assigned on an ad hoc basis but a large organization making many models with a lot of shared variables would want to develop an internal library of assigned variable IDs similar to an accountant’s “chart of accounts.”
B12: Sampling Error Around Dieharder Tests Results
H13: Figure 1: Sampling error around Dieharder tests results. This uses a Beta Distribution to with a prior of alpha=1 and beta=1 to compute a 90% confidence interval for estimate of mean weak/fails out Dieharder test suite. The top row of brackets are estimates of WEAK result rates and the bottom row are estimates of FAIL rates.
B15: • | C15: This uses a Beta Distribution with a prior of alpha=1 and beta=1 to compute a 90% confidence interval for the estimate of mean weak/fail rates in the Dieharder test suite.
H18: The top row of brackets are estimates of WEAK result rates and the bottom row are estimates of FAIL rates.
G19: •

Sheet Probabalistic Cash Flow HDR
A1: Probabalistic Cash Flow Example | K1: Data Table | N1: Histogram
A2: Trial ID: | B2: 9 | C2: Insert scroll bar. | K2: Build a data table with 500 scenarios. | N2: Enter the logic for a histogram below.
C3: Enter the formula for an inverse uniform in the Random Sample column.
B4: Input Variables | D4: Simulated Value | E4: Min. | F4: Max. | G4: Variable ID | H4: HDR PRNG | K4: Trial # | L4: NPV | N4: Bin | O4: Cumulative | P4: Frequency
B5: Percent reduction in labor cost | E5: 0.01 | F5: 0.06
B6: Current total labor cost | E6: 50000000 | F6: 90000000
B7: Initial development costs (2020) | E7: 3000000 | F7: 8000000 | T7: Insert histogram here.
B8: Cost of money | E8: 0.05 | F8: 0.08
B10: Cash Flow
C11: 2020 | D11: 2021 | E11: 2022 | F11: 2023 | G11: 2024
B12: Total costs | C12: =D7 -> 0
B13: Total benefits | D13: =$D6*$D5 -> 0 | E13: =$D6*$D5 -> 0 | F13: =$D6*$D5 -> 0 | G13: =$D6*$D5 -> 0
B14: Net benefit | C14: =C13-C12 -> 0 | D14: =D13-D12 -> 0 | E14: =E13-E12 -> 0 | F14: =F13-F12 -> 0 | G14: =G13-G12 -> 0
B16: Results | T16: Average NPV
B17: Net Present Value | C17: =NPV(E8, C14:G14) -> 0 | T17: P(NPV<0)

Sheet Distributions
A1: Selected Distributions
A2: Trial ID | B2: 7692
A4: Uniform
A5: One of the simplest distributions you can use is the uniform distribution. There is no chance of a value being above the maximum or below the minimum, and every value between the min and max are equally likely. ■■ When to use: When you know the minimum and maximum values, but any value in between is equally likely. ■■ Examples: The proportion of people that would buy a product, number of employees that do some activity. ■■ Mean = (min + max)/2 ■■ Simulated value = rand * (max - min) + min
A6: Simulated Value | B6: Minimum | C6: Mode or Probability | D6: Maximum | E6: Variable ID | F6: HDR PRNG
A7: =F7*(D7-B7)+B7 -> 0.05913932796 | B7: 0 | C7: N/A | D7: 1 | E7: 1 | F7: =(MOD((MOD(MOD(999999999999989,MOD($B$2*9929+E7*9721,31907)*4177+7450581)*30119,31607)*31607+MOD(MOD(997969999999967,MOD($B$2*9857+E7*9949,33493)*4051+7450581)*29633,31607))*1000981,4294967296)+0.5)/4294967296 -> 0.05913932796
A9: Triangular
A10: For a triangular distribution, the UB and LB represent absolute limits. There is no chance that a value could be generated outside of these bounds. In addition to the UB and LB, this distribution also has a mode that can vary to any value between the UB and LB. This is sometimes useful as a substitute for a lognormal, when you want to set absolute limits on what the values can be but you want to skew the output in a way similar to the lognormal. It is useful in any situation where you know of absolute limits but the most likely value might not be in the middle, like the normal distribution. ■■When to Use: When you want control over where the most likely value is compared to the range, and when the range has absolute limits. ■■ Examples: Number of records lost if you think the most likely number is near the top of the range and yet you have a finite number of records you know cannot be exceeded. ■■ Mean: =(min+mode+max)/3 ■■ Simulated value = IF(rand<(mode-min)/(max-min), 1, 0) * (min + SQRT(rand*(max-min)*(mode-min))) + IF(rand>= (mode-min)/(max-min), 1, 0) * (max - SQRT((1-rand) * (max - min) * (max - mode)))
A11: Random Result | B11: Minimum | C11: Mode or Probability | D11: Maximum | E11: Variable ID | F11: HDR PRNG
A12: =IF(F12<(C12-B12)/(D12-B12), 1, 0) * (B12 + SQRT(F12*(D12-B12)*(C12-B12))) + IF(F12>= (C12-B12)/(D12-B12), 1, 0) * (D12 - SQRT((1-F12) * (D12 - B12) * (D12 - C12))) -> 3.50716718 | B12: 1 | C12: 3 | D12: 4 | E12: 2 | F12: =(MOD((MOD(MOD(999999999999989,MOD($B$2*9929+E12*9721,31907)*4177+7450581)*30119,31607)*31607+MOD(MOD(997969999999967,MOD($B$2*9857+E12*9949,33493)*4051+7450581)*29633,31607))*1000981,4294967296)+0.5)/4294967296 -> 0.9190386039
A14: Binary
A15: Unlike the other distributions mentioned here, a discrete binary distribution (also known as a Bernoulli distribution) generates just two possible outcomes: success or failure. The probability of success is p and the probability of failure is q = (1 – p). For example, if success means to flip a fair coin heads‐up, the probability of success is p = .5, and the probability of failure is q = (1 – .5) = .5. ■■ When to use: This is used in either/or situations—something either happens or it doesn’t. ■■ Example: The occurrence of a data breach in a given period of time. ■■ Mean: =P ■■ Simulated value = if(rand<probability, 1, 0)
A16: Random Result | B16: Minimum | C16: Mode or Probability | D16: Maximum | E16: Variable ID | F16: HDR PRNG
A17: =IF(F17<C17,1,0) -> 0 | B17: N/A | C17: 0.3 | D17: N/A | E17: 3 | F17: =(MOD((MOD(MOD(999999999999989,MOD($B$2*9929+E17*9721,31907)*4177+7450581)*30119,31607)*31607+MOD(MOD(997969999999967,MOD($B$2*9857+E17*9949,33493)*4051+7450581)*29633,31607))*1000981,4294967296)+0.5)/4294967296 -> 0.9880179943

Sheet UBDM Example
A1: UBDM Example | L1: Data Table | O1: Histogram
C2: Trial ID: | D2: 20
B3: Input Variables | C3: Simulated value | D3: Lower Bound or Minimum | E3: Mode or Prob | F3: Upper Bound or Max | G3: Shape | H3: Variable ID | I3: HDR PRNG | L3: Trial # | M3: NPV | O3: Bin | P3: Cumulative | Q3: Frequency
B4: Time Spent in Document Mgt | C4: =I4*(F4-D4)+D4 -> 0.2987224732 | D4: 0.05 | F4: 0.3 | G4: Uniform | H4: 1 | I4: =((MOD((MOD(MOD(999999999999989,MOD(D$2*2499997+H4*1800451,7450589)*4658+7450581)*383,99991)*7440893+MOD(MOD(999999999999989,MOD(D$2*2246527+H4*2399993,7450987)*7580+7560584)*17669,7440893))*1343,4294967296))+0.5)/2^32 -> 0.9948898928 | M4: =C27 -> 3931105.925 | O4: -15000000 | P4: =COUNTIF(M$5:M$504, "<"&O4) -> 0 | Q4: =COUNTIF(M$5:M$504, "<="&O4)/COUNT($L$5:$L$504) -> 0
B5: Reduction in time spent in Doc Mgt | C5: =IF(I5<(E5-D5)/(F5-D5), 1, 0) * (D5 + SQRT(I5*(F5-D5)*(E5-D5))) + IF(I5>= (E5-D5)/(F5-D5), 1, 0) * (F5 - SQRT((1-I5) * (F5 - D5) * (F5 - E5))) -> 0.1428788268 | D5: 0.05 | E5: 0.2 | F5: 0.3 | G5: Triangular | H5: 2 | I5: 0.2300393727 | L5: 1 | M5: -4414419.185 | O5: =O4+1000000 -> -14000000 | P5: =COUNTIF(M$5:M$504, "<"&O5) -> 0 | Q5: =COUNTIF(M$5:M$504, "<="&O5)/COUNT($L$5:$L$504)-SUM(Q$4:Q4) -> 0
B6: Loaded cost of labor (per FTE) | C6: =_xlfn.LOGNORM.INV(I6,(LN(F6)+LN(D6))/2,(LN(F6)-LN(D6))/3.29) -> 81986.07306 | D6: 70000 | F6: 90000 | G6: Lognormal | H6: 3 | I6: 0.6642585919 | L6: 2 | M6: -5361932.142 | O6: =O5+1000000 -> -13000000 | P6: 0 | Q6: =COUNTIF(M$5:M$504, "<="&O6)/COUNT($L$5:$L$504)-SUM(Q$4:Q5) -> 0
B7: Staff involved in tasks | C7: =IF(I7<(E7-D7)/(F7-D7), 1, 0) * (D7 + SQRT(I7*(F7-D7)*(E7-D7))) + IF(I7>= (E7-D7)/(F7-D7), 1, 0) * (F7 - SQRT((1-I7) * (F7 - D7) * (F7 - E7))) -> 1197.481239 | D7: 1000 | E7: 1200 | F7: 1400 | G7: Triangular | H7: 4 | I7: 0.487485495 | L7: 3 | M7: -598716.7439 | O7: -12000000 | P7: 0 | Q7: =COUNTIF(M$5:M$504, "<="&O7)/COUNT($L$5:$L$504)-SUM(Q$4:Q6) -> 0
B8: Growth in volumes | C8: =_xlfn.NORM.INV(I8,(F8+D8)/2,(F8-D8)/3.29) -> 0.008287372904 | D8: 0 | F8: 0.08 | G8: Normal | H8: 5 | I8: 0.0960858037 | L8: 4 | M8: 5805005.814 | O8: -11000000 | P8: 0 | Q8: =COUNTIF(M$5:M$504, "<="&O8)/COUNT($L$5:$L$504)-SUM(Q$4:Q7) -> 0
B9: Initial development costs | C9: =IF(I9<(E9-D9)/(F9-D9), 1, 0) * (D9 + SQRT(I9*(F9-D9)*(E9-D9))) + IF(I9>= (E9-D9)/(F9-D9), 1, 0) * (F9 - SQRT((1-I9) * (F9 - D9) * (F9 - E9))) -> 7559633.743 | D9: 5000000 | E9: 7000000 | F9: 9000000 | G9: Triangular | H9: 6 | I9: 0.7406681307 | L9: 5 | M9: 4652849.257 | O9: -10000000 | P9: 2 | Q9: =COUNTIF(M$5:M$504, "<="&O9)/COUNT($L$5:$L$504)-SUM(Q$4:Q8) -> 0.004
B10: Ongoing Maintenance Costs | C10: =_xlfn.LOGNORM.INV(I10,(LN(F10)+LN(D10))/2,(LN(F10)-LN(D10))/3.29) -> 732475.2469 | D10: 500000 | F10: 1000000 | G10: Lognormal | H10: 7 | I10: 0.5664340948 | L10: 6 | M10: -3265654.941 | O10: -9000000 | P10: 5 | Q10: =COUNTIF(M$5:M$504, "<="&O10)/COUNT($L$5:$L$504)-SUM(Q$4:Q9) -> 0.006
B11: Chance of cancellation | C11: =IF(I11<E11, 1, 0) -> 0 | E11: 0.04 | G11: Binary | H11: 8 | I11: 0.879811172 | L11: 7 | M11: -2709723.592 | O11: -8000000 | P11: 11 | Q11: =COUNTIF(M$5:M$504, "<="&O11)/COUNT($L$5:$L$504)-SUM(Q$4:Q10) -> 0.012
B12: Cost of money | C12: =_xlfn.LOGNORM.INV(I12,(LN(F12)+LN(D12))/2,(LN(F12)-LN(D12))/3.29) -> 0.07756462558 | D12: 0.03 | F12: 0.09 | G12: Lognormal | H12: 9 | I12: 0.8848711731 | L12: 8 | M12: 5397706.216 | O12: -7000000 | P12: 20 | Q12: =COUNTIF(M$5:M$504, "<="&O12)/COUNT($L$5:$L$504)-SUM(Q$4:Q11) -> 0.018
L13: 9 | M13: 8232363.2 | O13: -6000000 | P13: 36 | Q13: =COUNTIF(M$5:M$504, "<="&O13)/COUNT($L$5:$L$504)-SUM(Q$4:Q12) -> 0.032
B14: Cash Flow | L14: 10 | M14: -3601010.301 | O14: -5000000 | P14: 51 | Q14: =COUNTIF(M$5:M$504, "<="&O14)/COUNT($L$5:$L$504)-SUM(Q$4:Q13) -> 0.03
C15: 2020 | D15: 2021 | E15: 2022 | F15: 2023 | G15: 2024 | L15: 11 | M15: 7650683.54 | O15: -4000000 | P15: 81 | Q15: =COUNTIF(M$5:M$504, "<="&O15)/COUNT($L$5:$L$504)-SUM(Q$4:Q14) -> 0.06 | U15: Average NPV | V15: =AVERAGE(M5:M504) -> 1863460.235
B16: Costs | L16: 12 | M16: 1940230.431 | O16: -3000000 | P16: 126 | Q16: =COUNTIF(M$5:M$504, "<="&O16)/COUNT($L$5:$L$504)-SUM(Q$4:Q15) -> 0.09 | U16: P(NPV<0) | V16: =COUNTIF(M5:M504, "<0")/500 -> 0.44
B17: Initial dev costs | C17: =C9 -> 7559633.743 | L17: 13 | M17: -3286409.004 | O17: -2000000 | P17: 158 | Q17: =COUNTIF(M$5:M$504, "<="&O17)/COUNT($L$5:$L$504)-SUM(Q$4:Q16) -> 0.064
B18: Ongoing maint. | D18: =$C10 -> 732475.2469 | E18: =$C10 -> 732475.2469 | F18: 732475.2469 | G18: 732475.2469 | L18: 14 | M18: -2040321.322 | O18: -1000000 | P18: 189 | Q18: =COUNTIF(M$5:M$504, "<="&O18)/COUNT($L$5:$L$504)-SUM(Q$4:Q17) -> 0.062
B19: Cancelled? | C19: =C11 -> 0 | L19: 15 | M19: -2870102.53 | O19: 0 | P19: 220 | Q19: =COUNTIF(M$5:M$504, "<="&O19)/COUNT($L$5:$L$504)-SUM(Q$4:Q18) -> 0.062
B20: Benefits | L20: 16 | M20: 11632467.65 | O20: 1000000 | P20: 246 | Q20: =COUNTIF(M$5:M$504, "<="&O20)/COUNT($L$5:$L$504)-SUM(Q$4:Q19) -> 0.052
B21: Staf w/growth | D21: =$C7*(1+$C8)^(D15-$C15) -> 1207.405212 | E21: =$C7*(1+$C8)^(E15-$C15) -> 1217.411429 | F21: 1227.500572 | G21: 1237.673327 | L21: 17 | M21: 12034183.91 | O21: 2000000 | P21: 276 | Q21: =COUNTIF(M$5:M$504, "<="&O21)/COUNT($L$5:$L$504)-SUM(Q$4:Q20) -> 0.06
B22: Cost of labor in doc mgt | D22: =D21*$C6*$C4 -> 29570660.68 | E22: =E21*$C6*$C4 -> 29815723.77 | F22: 30062817.79 | G22: 30311959.57 | L22: 18 | M22: 2573829.701 | O22: 3000000 | P22: 307 | Q22: =COUNTIF(M$5:M$504, "<="&O22)/COUNT($L$5:$L$504)-SUM(Q$4:Q21) -> 0.062
B23: Labor savings | D23: =D22*$C5*(1-$C19) -> 4225021.306 | E23: =E22*$C5*(1-$C19) -> 4260035.633 | F23: 4295340.137 | G23: 4330937.223 | L23: 19 | M23: 875608.0236 | O23: 4000000 | P23: 335 | Q23: =COUNTIF(M$5:M$504, "<="&O23)/COUNT($L$5:$L$504)-SUM(Q$4:Q22) -> 0.056
B24: Net benefit | C24: =C23-C18-C17 -> -7559633.743 | D24: =D23-D18-D17 -> 3492546.059 | E24: =E23-E18-E17 -> 3527560.387 | F24: 3562864.89 | G24: =G23-G18-G17 -> 3598461.976 | L24: 20 | M24: 3931105.925 | O24: 5000000 | P24: 355 | Q24: =COUNTIF(M$5:M$504, "<="&O24)/COUNT($L$5:$L$504)-SUM(Q$4:Q23) -> 0.04
L25: 21 | M25: 4239990.066 | O25: 6000000 | P25: 377 | Q25: =COUNTIF(M$5:M$504, "<="&O25)/COUNT($L$5:$L$504)-SUM(Q$4:Q24) -> 0.044
B26: Results | L26: 22 | M26: 3678350.164 | O26: 7000000 | P26: 395 | Q26: =COUNTIF(M$5:M$504, "<="&O26)/COUNT($L$5:$L$504)-SUM(Q$4:Q25) -> 0.036
B27: Net Present Value | C27: =NPV(C12, C24:G24) -> 3931105.925 | L27: 23 | M27: -5842282.502 | O27: 8000000 | P27: 416 | Q27: =COUNTIF(M$5:M$504, "<="&O27)/COUNT($L$5:$L$504)-SUM(Q$4:Q26) -> 0.042
L28: 24 | M28: 7925603.902 | O28: 9000000 | P28: 432 | Q28: =COUNTIF(M$5:M$504, "<="&O28)/COUNT($L$5:$L$504)-SUM(Q$4:Q27) -> 0.032
L29: 25 | M29: 3215006.643 | O29: 10000000 | P29: 446 | Q29: =COUNTIF(M$5:M$504, "<="&O29)/COUNT($L$5:$L$504)-SUM(Q$4:Q28) -> 0.028
L30: 26 | M30: -3126040.661 | O30: 11000000 | P30: 456 | Q30: =COUNTIF(M$5:M$504, "<="&O30)/COUNT($L$5:$L$504)-SUM(Q$4:Q29) -> 0.02
L31: 27 | M31: 7804801.5 | O31: 12000000 | P31: 462 | Q31: =COUNTIF(M$5:M$504, "<="&O31)/COUNT($L$5:$L$504)-SUM(Q$4:Q30) -> 0.012
L32: 28 | M32: 490651.938 | O32: 13000000 | P32: 477 | Q32: =COUNTIF(M$5:M$504, "<="&O32)/COUNT($L$5:$L$504)-SUM(Q$4:Q31) -> 0.03
L33: 29 | M33: 2481061.332 | O33: 14000000 | P33: 482 | Q33: =COUNTIF(M$5:M$504, "<="&O33)/COUNT($L$5:$L$504)-SUM(Q$4:Q32) -> 0.01
L34: 30 | M34: -3806684.96 | O34: 15000000 | P34: 487 | Q34: =COUNTIF(M$5:M$504, "<="&O34)/COUNT($L$5:$L$504)-SUM(Q$4:Q33) -> 0.01
L35: 31 | M35: 1527902.142 | O35: 16000000 | P35: 490 | Q35: =COUNTIF(M$5:M$504, "<="&O35)/COUNT($L$5:$L$504)-SUM(Q$4:Q34) -> 0.006
L36: 32 | M36: 4844542.803 | O36: 17000000 | P36: 492 | Q36: =COUNTIF(M$5:M$504, "<="&O36)/COUNT($L$5:$L$504)-SUM(Q$4:Q35) -> 0.004
L37: 33 | M37: -5407224.402 | O37: =O36+1000000 -> 18000000 | P37: =COUNTIF(M$5:M$504, "<"&O37) -> 496 | Q37: =COUNTIF(M$5:M$504, "<="&O37)/COUNT($L$5:$L$504)-SUM(Q$4:Q36) -> 0.008
L38: 34 | M38: -2016153.52 | O38: 19000000 | P38: 498 | Q38: =COUNTIF(M$5:M$504, "<="&O38)/COUNT($L$5:$L$504)-SUM(Q$4:Q37) -> 0.004
L39: 35 | M39: -6102674.867 | O39: 20000000 | P39: 499 | Q39: =COUNTIF(M$5:M$504, "<="&O39)/COUNT($L$5:$L$504)-SUM(Q$4:Q38) -> 0.002
L40: 36 | M40: -4572593.394
L41: 37 | M41: -5463114.955
L42: 38 | M42: -3316209.93
L43: 39 | M43: 2081518.29
L44: 40 | M44: -95008.70669
L45: 41 | M45: 5362779.429
L46: 42 | M46: -4451684.15
L47: 43 | M47: 9908105.479
L48: 44 | M48: 14658812.43
L49: 45 | M49: 13665668.76
L50: 46 | M50: -4488842.346
L51: 47 | M51: -5413035.919
L52: 48 | M52: 9559177.92
L53: 49 | M53: 4126673.199
L54: 50 | M54: 2165147.552
L55: 51 | M55: -1220357.941
L56: 52 | M56: -1487099.537
L57: 53 | M57: -994918.6743
L58: 54 | M58: 174614.6852
L59: 55 | M59: -2388673.099
L60: 56 | M60: 8790516.591
L61: 57 | M61: 9347395.127
L62: 58 | M62: -2645248.037
L63: 59 | M63: 2371399.548
L64: 60 | M64: -407512.8253
L65: 61 | M65: 2897229.133
L66: 62 | M66: -3561822.238
L67: 63 | M67: -724082.0058
L68: 64 | M68: 6378906.898
L69: 65 | M69: 19290438.39
L70: 66 | M70: -3253659.287
L71: 67 | M71: 3168799.809
L72: 68 | M72: 1118741.562
L73: 69 | M73: -1924135.847
L74: 70 | M74: -4121787.735
L75: 71 | M75: 4112786.291
L76: 72 | M76: 3201817.994
L77: 73 | M77: -4519228.58
L78: 74 | M78: -1177465.191
L79: 75 | M79: -107279.5719
L80: 76 | M80: -3495516.142
L81: 77 | M81: -2091958.763
L82: 78 | M82: 5481950.37
L83: 79 | M83: -1674455.414
L84: 80 | M84: 12253934.08
L85: 81 | M85: 7463157.743
L86: 82 | M86: 9979316.76
L87: 83 | M87: -1243373.816
L88: 84 | M88: -930440.0613
L89: 85 | M89: 1260921.177
L90: 86 | M90: -2776049.382
L91: 87 | M91: 5072471.708
L92: 88 | M92: -1722096.115
L93: 89 | M93: 6271858.24
L94: 90 | M94: -8787442.135
L95: 91 | M95: 6954122.055
L96: 92 | M96: -6190356.226
L97: 93 | M97: 8312637.579
L98: 94 | M98: -7373155.168
L99: 95 | M99: 8206741.123
L100: 96 | M100: 455333.6286
L101: 97 | M101: -3669840.987
L102: 98 | M102: 10456232.04
L103: 99 | M103: 12031730.15
L104: 100 | M104: -4514725.638
L105: 101 | M105: -5207533.561
L106: 102 | M106: 12885664.54
L107: 103 | M107: -777560.0227
L108: 104 | M108: 6636632.91
L109: 105 | M109: 3189067.701
L110: 106 | M110: 16132984.7
L111: 107 | M111: 14953439.52
L112: 108 | M112: 67.84381802
L113: 109 | M113: -5323044.534
L114: 110 | M114: 1287040.84
L115: 111 | M115: -6497411.823
L116: 112 | M116: 679381.2322
L117: 113 | M117: -6194589.692
L118: 114 | M118: 7449058.247
L119: 115 | M119: -3778008.812
L120: 116 | M120: 8938195.857
L121: 117 | M121: -3893993.82
L122: 118 | M122: 2720923.559
L123: 119 | M123: 9051869.036
L124: 120 | M124: 18472622.48
L125: 121 | M125: -301902.7656
L126: 122 | M126: 5812898.395
L127: 123 | M127: -2149531.8
L128: 124 | M128: -4966548.519
L129: 125 | M129: 5138609.897
L130: 126 | M130: 10452243.53
L131: 127 | M131: -1904760.612
L132: 128 | M132: 2593936.09
L133: 129 | M133: 3291199.953
L134: 130 | M134: 5143008.296
L135: 131 | M135: -4416353.635
L136: 132 | M136: 7690317.053
L137: 133 | M137: -4471294.189
L138: 134 | M138: 10417212.99
L139: 135 | M139: -3375929.455
L140: 136 | M140: 15231444.26
L141: 137 | M141: -9247186.314
L142: 138 | M142: 4474145.603
L143: 139 | M143: 2079519.879
L144: 140 | M144: -3671700.246
L145: 141 | M145: 6923144.909
L146: 142 | M146: -3585521.976
L147: 143 | M147: 7256125.562
L148: 144 | M148: 622173.3404
L149: 145 | M149: 5214987.192
L150: 146 | M150: -5081784.169
L151: 147 | M151: -4898495.527
L152: 148 | M152: 1271131.894
L153: 149 | M153: 8585092.755
L154: 150 | M154: 5525622.8
L155: 151 | M155: -4366144.456
L156: 152 | M156: -3186956.978
L157: 153 | M157: 4904489.021
L158: 154 | M158: 11402876.62
L159: 155 | M159: 3749268.253
L160: 156 | M160: -8121871.329
L161: 157 | M161: 6952981.523
L162: 158 | M162: -4482537.404
L163: 159 | M163: 1502323.821
L164: 160 | M164: -3010426.373
L165: 161 | M165: 2263416.121
L166: 162 | M166: -8976201.13
L167: 163 | M167: 2415192.394
L168: 164 | M168: -3842642.128
L169: 165 | M169: 1271886.579
L170: 166 | M170: -2727798.369
L171: 167 | M171: -285208.5459
L172: 168 | M172: -3927095.213
L173: 169 | M173: 7625482.932
L174: 170 | M174: -6868647.729
L175: 171 | M175: 1002023.886
L176: 172 | M176: -4638048.419
L177: 173 | M177: -1850983.047
L178: 174 | M178: -2691462.511
L179: 175 | M179: 9459257.71
L180: 176 | M180: 4469062.86
L181: 177 | M181: 3944899.389
L182: 178 | M182: 2617955.275
L183: 179 | M183: -7570666.554
L184: 180 | M184: 12950602.87
L185: 181 | M185: 5111719.688
L186: 182 | M186: -3294799.689
L187: 183 | M187: -6878334.551
L188: 184 | M188: 6666132.669
L189: 185 | M189: 2300461.444
L190: 186 | M190: -6288533.82
L191: 187 | M191: 12586014.76
L192: 188 | M192: 12738677.2
L193: 189 | M193: 3539400.044
L194: 190 | M194: -5025583.159
L195: 191 | M195: 2306968.308
L196: 192 | M196: 5488138.155
L197: 193 | M197: 11906362.1
L198: 194 | M198: 3604721.583
L199: 195 | M199: 619030.3257
L200: 196 | M200: 2659695.275
... 304 more rows

Sheet Final Slides
B2: Performance Considerations
B5: • | C5: Balance number of scenarios and sampling error.
B7: • | C7: Use a fixed set of random numbers applied to each agent (primarily for agent-based prioritization).
B10: • | C10: Limit the number of cross sheet references.
B12: • | C12: Avoid using volatile functions.
D13: RAND()
D14: NOW()
D15: TODAY()
D16: OFFSET()
D17: CELL()
D18: INDIRECT()
D19: INFO()
B22: Aspirational Goals
B25: • | C25: Agent-based Models
B27: • | C27: Markov chain Models
B29: • | C29: Risk Tolerance & Expected Utility
B31: • | C31: Information Value
B33: • | C33: Excel's New Dynamic Array Functions
D34: FILTER() – allows you to filter a range of data based on criteria you define.
D35: RANDARRAY() – returns an array of random numbers between 0 and 1.
D36: SEQUENCE() – allows you to generate a list of sequential numbers in an array, such as 1, 2, 3, 4.
D37: SORT() – sorts the contents of a range or array.
D38: UNIQUE() – returns a list of unique values in a list or range.
B42: Contact
C46: Doug Hubbard
C47: Hubbard Decision Research
C48: dwhubbard@hubbardresearch.com
C49: www.hubbardresearch.com
C50: 630 858 2788
